Workbook

Sheet EXEMPLE
A1: NUMÉRO DE MATRICULE: | D1: 689000000 | G1: Sortie annuelle: | H1: Allée/Retour | L1: # Frais sortie | N1: =TODAY() -> 44760 | S1: Allée | V1: 000-0-00000-000 | AM1: =EXACT(AO1,K14) -> FALSE | AN1: =CODE(AM1) -> 70 | AO1: oui | AP1: =IF(AN1=86,$AD$10*$AE$10,$AD$11*$AE$10) -> 0.46
A2: Nom de l'employé | G2: Destination: | H2: Sherbrooke | S2: Allée/Retour | V2: 999-9-99999-999 | AK2: oui | AM2: =EXACT(AO2,K15) -> FALSE | AN2: =CODE(AM2) -> 70 | AO2: oui | AP2: =IF(AN2=86,$AD$10*$AE$10,$AD$11*$AE$10) -> 0.46
A3: Keven Labrie | J3: am pm | S3: Retour | AM3: =EXACT(AO3,K16) -> FALSE | AN3: =CODE(AM3) -> 70 | AO3: oui | AP3: =IF(AN3=86,$AD$10*$AE$10,$AD$11*$AE$10) -> 0.46
A4: Adresse | F4: DÉPART: | G4: 30-05-2012 | H4: HEURE: | I4: 08:00:00 | AM4: =EXACT(AO4,K17) -> TRUE | AN4: 86 | AO4: oui | AP4: 0.64
A5: Rue: | B5: 123 Lauriers | L5: réservé à l'administration | AM5: FALSE | AN5: 70 | AO5: oui | AP5: 0.46
A6: Ville: | B6: Lourdes de Blanc-Sablon | F6: ARRIVÉE: | G6: 2-06-2012 | H6: HEURE: | I6: 11:00:00 | L6: Vérifié par: | AM6: FALSE | AN6: 70 | AO6: oui | AP6: 0.46
A7: Province: | B7: Québec | D7: G0G1L0 | L7: Date : | AM7: FALSE | AN7: 70 | AO7: oui | AP7: 0.46
A8: Nom des personnes qui ont voyagé | F8: RETOUR: | G8: 28-07-2012 | H8: HEURE: | I8: 10:00:00 | AM8: FALSE | AN8: 70 | AO8: oui | AP8: 0.46
A9: Keven, Jenna, Sarah | L9: Équivalent aérien: | N9: 2200 | AM9: FALSE | AN9: 70 | AO9: oui | AP9: 0.46
F10: ARRIVÉE: | G10: 29-07-2012 | H10: HEURE: | I10: 06:00:00 | L10: (pour 1 personne) | AD10: 0.64 | AE10: 1 | AM10: FALSE | AN10: 70 | AO10: oui | AP10: 0.46
AC11: Kilometre | AD11: 0.46 | AE11: 0.49 | AG11: Frais fondés sur les reçu | AK11: Province | AM11: FALSE | AN11: 70 | AO11: oui | AP11: 0.46
AC12: Blanc-Sablon - Rimouski (1571 km) | AD12: =1883-312 -> 1571 | AE12: =AD12*$AD$11 -> 722.66 | AG12: Autobus | AK12: Alberta | AM12: FALSE | AN12: 70 | AO12: oui | AP12: 0.46
A13: Date | B13: Km parcouru | D13: $ / km | E13: Frais remboursé (montant employé) | G13: Frais fondés sur les reçus | H13: Montant du reçu ($) | I13: Km parcouru | J13: $ / km | K13: Covoiturage | L13: Total de la ligne | N13: Justification | O13: Reçu manquant | U13: Total ligne | X13: remb frais | Y13: Kilometrage | Z13: allocation versés entre village | AC13: Blanc-Sablon -Québec (1883km) | AD13: 1883 | AE13: =AD13*$AD$11 -> 866.18 | AG13: Autres | AK13: Colombie-Britannique | AM13: FALSE | AN13: 70 | AO13: oui | AP13: 0.46
A14: 2012-05-30 | B14: Lourdes-de-Blanc-Sablon - Blanc-Sablon (3,7km) | D14: =Y14 -> 1.813 | G14: Dîner (max 15$) | H14: 13.26 | J14: =+IF(AN1=70,($I14*$AD$11),($I14*$AD$10)+((D14/$AD$11)*$AD$10)-D14) -> 0 | L14: =(IF(ISTEXT($H$2),U14," ")) -> 15.073 | U14: =(X14+Y14+IF(I14<0,0,J14+H14)) -> 15.073 | X14: =IF(ISNA(VLOOKUP($E14,$AE$40:$AF$60,2,FALSE))=TRUE, ,VLOOKUP($E14,$AE$40:$AF$60,2,FALSE)) -> 0 | Y14: =IF(ISNA(VLOOKUP($B14,$AC$12:$AE$35,3,FALSE))=TRUE, ,VLOOKUP($B14,$AC$12:$AE$35,3,FALSE)) -> 1.813 | AC14: Blanc-Sablon- St-John(966km) | AD14: 966 | AE14: =AD14*$AD$11 -> 444.36 | AG14: Avion | AK14: Île-du-Prince-Édouard | AM14: FALSE | AN14: 70 | AO14: oui | AP14: 0.46
D15: 0 | G15: Avion | H15: 836 | J15: =+IF(AN2=70,($I15*$AD$11),($I15*$AD$10)+((D15/$AD$11)*$AD$10)-D15) -> 0 | L15: =(IF(ISTEXT($H$2),U15," ")) -> 836 | M15: avion Blanc-Sablon à Sept-Iles (aller/retour) | U15: =(X15+Y15+IF(I15<0,0,J15+H15)) -> 836 | X15: 0 | Y15: 0 | AC15: Lourdes-de-Blanc-Sablon - Blanc-Sablon (3,7km) | AD15: 3.7 | AE15: =$AE$11*AD15 -> 1.813 | AG15: Déjeuner (max 10$) | AK15: Manitoba | AM15: FALSE | AN15: 70 | AO15: oui | AP15: 0.46
D16: 0 | E16: Chevery/ La Tabatière (75,50$) | G16: Taxi, $ du reçu | H16: 26.84 | J16: =+IF(AN3=70,($I16*$AD$11),($I16*$AD$10)+((D16/$AD$11)*$AD$10)-D16) -> 0 | L16: 102.34 | U16: 102.34 | X16: 75.5 | Y16: 0 | AC16: Montréal - Toronto (556km) | AD16: 556 | AE16: =$AD$11*AD16 -> 255.76 | AG16: Dîner (max 15$) | AK16: Nouveau-Brunswick | AM16: =EXACT(AO16,K29) -> FALSE | AN16: 70 | AO16: oui | AP16: 0.46
A17: 2012-06-01 | B17: Sept-Iles - Québec (653km) | D17: 300.38 | G17: Repas journée (max 52$) | H17: 52 | J17: =+IF(AN4=70,($I17*$AD$11),($I17*$AD$10)+((D17/$AD$11)*$AD$10)-D17) -> 117.54 | K17: oui | L17: 469.92 | M17: covoiturage avec (nom de l'employé) | U17: 469.92 | X17: 0 | Y17: 300.38 | AC17: Montréal-Ottawa (202km) | AD17: 202 | AE17: =$AD$11*AD17 -> 92.92 | AG17: Hébergement, fact d'hôtel | AK17: Nunavut | AM17: =EXACT(AO17,K30) -> FALSE | AN17: 70 | AO17: oui | AP17: 0.46
A18: 2012-06-01 | B18: Québec- Sherbrooke (254) | D18: 116.84 | J18: =+IF(AN5=70,($I18*$AD$11),($I18*$AD$10)+((D18/$AD$11)*$AD$10)-D18) -> 0 | L18: =(IF(ISTEXT($H$2),U18," ")) -> 116.84 | U18: 116.84 | X18: 0 | Y18: 116.84 | AC18: Old Fort bay - Rivière St-Paul (12$) | AD18: 0 | AE18: 12 | AG18: Repas journée (max 52$) | AK18: Québec
D19: 0 | E19: Hébergement (sans reçu 30$) | J19: =+IF(AN6=70,($I19*$AD$11),($I19*$AD$10)+((D19/$AD$11)*$AD$10)-D19) -> 0 | L19: 30 | M19: Loger chez des amis à Sept-Iles | U19: 30 | X19: 30 | Y19: 0 | AC19: Old Fort Bay-Blanc-Sablon (30km) | AD19: 30 | AE19: =AD19*$AE$11 -> 14.7 | AG19: Souper (max 27$) | AK19: Saskatchewan
D20: 0 | J20: 0 | L20: 0 | U20: 0 | X20: 0 | Y20: 0 | AC20: Québec- Sherbrooke (254) | AD20: 254 | AE20: =$AD$11*AD20 -> 116.84 | AG20: Stationnement, $ du reçu | AK20: Terre-Neuve-et-Labrador
D21: 0 | J21: 0 | L21: 0 | U21: 0 | X21: 0 | Y21: 0 | AC21: Québec-Montréal (267km) | AD21: 267 | AE21: =$AD$11*AD21 -> 122.82 | AG21: Taxi, $ du reçu | AK21: Territoire du Nord-Ouest
D22: 0 | J22: 0 | L22: 0 | U22: 0 | X22: 0 | Y22: 0 | AC22: Rivière St-Paul - Blanc Sablon (65,8km) | AD22: =22.2+28+11.9+3.7 -> 65.8 | AE22: =AD22*$AE$11 -> 32.242 | AG22: Train, $ du reçu | AK22: Yukon
D23: 0 | J23: 0 | L23: 0 | U23: 0 | X23: 0 | Y23: 0 | AC23: Sept-Iles - Havre-St-Pierre (223km) | AD23: 223 | AE23: =$AD$11*AD23 -> 102.58 | AG23: Transport en commun
D24: 0 | J24: 0 | L24: 0 | U24: 0 | X24: 0 | Y24: 0 | AC24: Sept-Iles - La Malbaie (502 km) | AD24: 502 | AE24: =AD24*$AD$11 -> 230.92 | AG24: Traverse Blanc-Sablon - St-Barbe
D25: 0 | J25: 0 | L25: 0 | U25: 0 | X25: 0 | Y25: 0 | AC25: Sept-Iles - Montreal (920) | AD25: 920 | AE25: =AD25*$AD$11 -> 423.2 | AG25: Traverse Port-aux-Basques - North Sydney
D26: 0 | J26: 0 | L26: 0 | U26: 0 | X26: 0 | Y26: 0 | AC26: Sept-Iles - Québec (653km) | AD26: 653 | AE26: =AD26*$AD$11 -> 300.38
D27: 0 | J27: 0 | L27: 0 | U27: 0 | X27: 0 | Y27: 0 | AC27: Sept-Iles - St-Urbain (555 km) | AD27: 555 | AE27: =AD27*$AD$11 -> 255.3
D28: 0 | J28: 0 | L28: 0 | U28: 0 | X28: 0 | Y28: 0 | AC28: Sept-Iles- Baie-Comeau (233 km) | AD28: 233 | AE28: =AD28*$AD$11 -> 107.18
D29: 0 | J29: 0 | L29: 0 | U29: =(X29+Y29+IF(I29<0,0,J29+H29)) -> 0 | X29: 0 | Y29: 0 | AC29: Sept-Iles- Natasquan (377km) | AD29: =154+223 -> 377 | AE29: =$AD$11*AD29 -> 173.42
D30: =Y30 -> 0 | J30: =+IF(AN17=70,($I30*$AD$11),($I30*$AD$10)+((D30/$AD$11)*$AD$10)-D30) -> 0 | L30: =(IF(ISTEXT($H$2),U30," ")) -> 0 | U30: =(X30+Y30+IF(I30<0,0,J30+H30)) -> 0 | X30: 0 | Y30: 0 | AC30: St-Barbe - Corner Brooke (350km) | AD30: =298+52 -> 350 | AE30: 161
N31: Total du frais de la sortie annuelle | AC31: St-Barbe - DeerLake (298km) | AD31: 298 | AE31: 137.08
B32: Date | C32: =TODAY() -> 2022-07-18 | G32: Réservé à l'administration | N32: =SUM(L14:L30) -> 1570.173 | AC32: St-Barbe - Port-aux Basques (577km) | AD32: =298+52+75+152 -> 577 | AE32: 265.42 | AN32: Allocation lors des déplacemen
AC33: St-Barbe - Stephenville (425km) | AD33: =298+52+75 -> 425 | AE33: 195.5 | AN33: Village | AO33: Aéroport | AP33: Bureau de poste | AQ33: Quai | AR33: Village
A34: SIGNATURE DE L'EMPLOYÉ: | G34: CODE:____________________________________________________________________ | AC34: St-Paul -Blanc-sablon (20km) | AD34: 20 | AE34: 9.2 | AN34: Blanc-Sablon | AO34: 10 | AP34: 8 | AQ34: 8 | AR34: 8
AN35: Chevery | AO35: 8 | AP35: 8 | AQ35: 8 | AR35: 0
G36: CODE:____________________________________________________________________ | AN36: Chevery (succursale) | AO36: 8 | AP36: 8 | AQ36: 8 | AR36: 0
AN37: Harrington | AO37: 0 | AP37: 8 | AQ37: 8 | AR37: 0
AN38: Kégaska | AO38: 8 | AP38: 8 | AQ38: 8 | AR38: 0
AA39: Québec | AE39: Remb frais | AN39: La Romaine | AO39: 8 | AP39: 8 | AQ39: 8 | AR39: 0
AA40: Montréal | AE40: Chevery/ St-Augustin (130,00$) | AF40: 130 | AN40: La Tabatière | AO40: 8 | AP40: 8 | AQ40: 8 | AR40: 0
AA41: Sept-iles | AE41: Chevery/ Harrington Harbour (16,50$) | AF41: 16.5 | AN41: Middle bay | AO41: 0 | AP41: 0 | AQ41: 0 | AR41: 0
AA42: Corner Brooke | AE42: Chevery/ Kegaska (142,50$) | AF42: 142.5 | AN42: Mutton Bay | AO42: 8 | AP42: 8 | AQ42: 8 | AR42: 0
AA43: Gatineau | AE43: Chevery/ La Tabatière (75,50$) | AF43: 75.5 | AN43: Old Fort Bay | AO43: 75 | AP43: 8 | AQ43: 8 | AR43: 0
AA44: Malbaie | AE44: Chevery/ Tête-a-la-Baleine (37,50$) | AF44: 37.5 | AN44: Port-Menier | AO44: 8 | AP44: 8 | AQ44: 8 | AR44: 8
AA45: Baie-Comeau | AE45: Chevery/La Romaine (90.00$) | AF45: 90 | AN45: St-Augustin | AO45: 8 | AP45: 8 | AQ45: 8 | AR45: 0
AA46: Natasquan | AE46: Hébergement (sans reçu 30$) | AF46: 30 | AN46: St-Paul | AO46: 51.5 | AP46: 8 | AQ46: 24 | AR46: 0
AA47: Havre-St-Pierre | AE47: Kegaska / La Romaine (53,50$) | AF47: 53.5 | AN47: Tête-à-la-Baleine | AO47: 8 | AP47: 8 | AQ47: 18 | AR47: 0
AA48: Sherbrooke | AE48: Kegaska/Natasquan (45.00$) | AF48: 45
AA49: Kegaska | AE49: La Tabatière/ Old Fort Bay (12,00$) | AF49: 12
AA50: Romaine | AE50: La Tabatière/ Rivière St-Augustin (54,50$) | AF50: 54.5
AA51: Chevery | AE51: St-Augustin/ Old Fort Bay (75,50$) | AF51: 75.5
AA52: Harrington Harbour | AE52: Tête-a-la-Baleine/ La Tabatière (45,00$) | AF52: 45
AA53: Tête-à-la-Baleine
AA54: Port Menier
AA55: Mutton Bay
AA56: La Tabatière
AA57: St-Augustin
AA58: Old Fort Bay
AA59: Rivière St-Paul
AA60: Lourdes-de-Blanc-Sablon
AA61: Blanc-Sablon

Sheet FORMULAIRE (1)
A1: NUMÉRO DE MATRICULE: | G1: Sortie annuelle : | H1: Aller/Retour | L1: Numéro de frais de sortie | N1: =TODAY() -> 44760 | S1: Aller | V1: 000-0-00000-000 | AM1: =EXACT(AO1,K14) -> FALSE | AN1: =CODE(AM1) -> 70 | AO1: oui | AP1: 0.55
A2: NOM et Prénom de l'employé | G2: Destination: | H2: Montréal | S2: Aller/Retour | V2: 999-9-99999-999 | AK2: oui | AM2: =EXACT(AO2,K15) -> FALSE | AN2: =CODE(AM2) -> 70 | AO2: oui | AP2: 0.55
J3: am pm | S3: Retour | AM3: =EXACT(AO3,K16) -> FALSE | AN3: =CODE(AM3) -> 70 | AO3: oui | AP3: 0.55
A4: Adresse | F4: DÉPART: | H4: HEURE: | AM4: =EXACT(AO4,K17) -> FALSE | AN4: 70 | AO4: oui | AP4: 0.55
A5: Rue: | L5: réservé à l'administration | AM5: FALSE | AN5: 70 | AO5: oui | AP5: 0.55
A6: Ville: | F6: ARRIVÉE: | H6: HEURE: | L6: Vérifié par: | AM6: FALSE | AN6: 70 | AO6: oui | AP6: 0.55
A7: Province: | L7: Date : | AM7: FALSE | AN7: 70 | AO7: oui | AP7: 0.55
A8: Nom des personnes qui ont voyagé | F8: RETOUR: | H8: HEURE: | AM8: FALSE | AN8: 70 | AO8: oui | AP8: 0.55
AM9: FALSE | AN9: 70 | AO9: oui | AP9: 0.55
F10: ARRIVÉE: | H10: HEURE: | AD10: 0.61 | AE10: 1 | AM10: FALSE | AN10: 70 | AO10: oui | AP10: 0.55
AC11: Kilometre | AD11: 0.55 | AE11: 0.55 | AG11: Frais fondés sur les reçu | AK11: Province | AM11: FALSE | AN11: 70 | AO11: oui | AP11: 0.55
AC12: Blanc-Sablon - Rimouski (1571 km) | AD12: =1883-312 -> 1571 | AE12: =AD12*$AD$11 -> 864.05 | AG12: Autobus | AK12: Alberta | AM12: FALSE | AN12: 70 | AO12: oui | AP12: 0.55
A13: Date | B13: Km parcouru | D13: $ / km | E13: Frais remboursé (montant employé) | G13: Frais fondés sur les reçus | H13: Montant du reçu ($) | I13: Km parcouru | J13: $ / km | K13: Covoiturage | L13: Total de la ligne | N13: Justification | O13: Reçu manquant | U13: Total ligne | X13: remb frais | Y13: Kilometrage | Z13: allocation versés entre village | AC13: Blanc-Sablon -Québec (1883km) | AD13: 1883 | AE13: =AD13*$AD$11 -> 1035.65 | AG13: Autres | AK13: Colombie-Britannique | AM13: FALSE | AN13: 70 | AO13: oui | AP13: 0.55
D14: =Y14 -> 0 | J14: =+IF(AN1=70,($I14*$AD$11),($I14*$AD$10)+((D14/$AD$11)*$AD$10)-D14) -> 0 | L14: =(IF(ISTEXT($H$2),U14," ")) -> 0 | U14: =(X14+Y14+IF(I14<0,0,J14+H14)) -> 0 | X14: =IF(ISNA(VLOOKUP($E14,$AE$40:$AF$64,2,FALSE))=TRUE, ,VLOOKUP($E14,$AE$40:$AF$64,2,FALSE)) -> 0 | Y14: =IF(ISNA(VLOOKUP($B14,$AC$12:$AE$35,3,FALSE))=TRUE, ,VLOOKUP($B14,$AC$12:$AE$35,3,FALSE)) -> 0 | AC14: Blanc-Sablon- St-John(966km) | AD14: 966 | AE14: =AD14*$AD$11 -> 531.3 | AG14: Avion | AK14: Île-du-Prince-Édouard | AM14: FALSE | AN14: 70 | AO14: oui | AP14: 0.55
D15: 0 | J15: =+IF(AN2=70,($I15*$AD$11),($I15*$AD$10)+((D15/$AD$11)*$AD$10)-D15) -> 0 | L15: =(IF(ISTEXT($H$2),U15," ")) -> 0 | U15: =(X15+Y15+IF(I15<0,0,J15+H15)) -> 0 | X15: =IF(ISNA(VLOOKUP($E15,$AE$40:$AF$64,2,FALSE))=TRUE, ,VLOOKUP($E15,$AE$40:$AF$64,2,FALSE)) -> 0 | Y15: 0 | AC15: Kegaska - Natasquan (49 km) | AD15: 49 | AE15: =AD15*$AD$11 -> 26.95 | AG15: Déjeuner (max 10$) | AK15: Manitoba | AM15: FALSE | AN15: 70 | AO15: oui | AP15: 0.55
D16: 0 | J16: 0 | L16: 0 | U16: 0 | X16: 0 | Y16: 0 | AC16: Lourdes-de-Blanc-Sablon - Blanc-Sablon (3,7km) | AD16: 3.7 | AE16: =$AE$11*AD16 -> 2.035 | AG16: Dîner (max 15$) | AK16: Nouveau-Brunswick | AM16: =EXACT(AO16,K29) -> FALSE | AN16: 70 | AO16: oui | AP16: 0.55
D17: 0 | J17: 0 | L17: 0 | U17: 0 | X17: 0 | Y17: 0 | AC17: Montréal - Toronto (556km) | AD17: 556 | AE17: =$AD$11*AD17 -> 305.8 | AG17: Hébergement, fact d'hôtel | AK17: Nunavut | AM17: =EXACT(AO17,K30) -> FALSE | AN17: 70 | AO17: oui | AP17: 0.55
D18: 0 | J18: 0 | L18: =(IF(ISTEXT($H$2),U18," ")) -> 0 | U18: 0 | X18: 0 | Y18: 0 | AC18: Montréal-Ottawa (202km) | AD18: 202 | AE18: =$AD$11*AD18 -> 111.1 | AG18: Repas journée (max 52$) | AK18: Québec
D19: 0 | J19: 0 | L19: 0 | U19: 0 | X19: 0 | Y19: 0 | AC19: Old Fort bay - Rivière St-Paul (12$) | AD19: 0 | AE19: 12 | AG19: Souper (max 27$) | AK19: Saskatchewan
D20: 0 | J20: 0 | L20: 0 | U20: 0 | X20: 0 | Y20: 0 | AC20: Old Fort Bay-Blanc-Sablon (30km) | AD20: 30 | AE20: =AD20*$AE$11 -> 16.5 | AG20: Stationnement, $ du reçu | AK20: Terre-Neuve-et-Labrador
D21: 0 | J21: 0 | L21: 0 | U21: 0 | X21: 0 | Y21: 0 | AC21: Québec- Sherbrooke (254) | AD21: 254 | AE21: =$AD$11*AD21 -> 139.7 | AG21: Taxi, $ du reçu | AK21: Territoire du Nord-Ouest
D22: 0 | J22: 0 | L22: 0 | U22: 0 | X22: 0 | Y22: 0 | AC22: Québec-Montréal (267km) | AD22: 267 | AE22: =$AD$11*AD22 -> 146.85 | AG22: Train, $ du reçu | AK22: Yukon
D23: 0 | J23: 0 | L23: 0 | U23: 0 | X23: 0 | Y23: 0 | AC23: Rivière St-Paul - Blanc Sablon (65,8km) | AD23: =22.2+28+11.9+3.7 -> 65.8 | AE23: =AD23*$AE$11 -> 36.19 | AG23: Transport en commun
D24: 0 | J24: 0 | L24: 0 | U24: 0 | X24: 0 | Y24: 0 | AC24: Sept-Iles - Havre-St-Pierre (223km) | AD24: 223 | AE24: =$AD$11*AD24 -> 122.65 | AG24: Traverse Blanc-Sablon - St-Barbe
D25: 0 | J25: 0 | L25: 0 | U25: 0 | X25: 0 | Y25: 0 | AC25: Sept-Iles - La Malbaie (502 km) | AD25: 502 | AE25: =AD25*$AD$11 -> 276.1 | AG25: Traverse Port-aux-Basques - North Sydney
D26: 0 | J26: 0 | L26: 0 | U26: 0 | X26: 0 | Y26: 0 | AC26: Sept-Iles - Montreal (920) | AD26: 920 | AE26: =AD26*$AD$11 -> 506
D27: 0 | J27: 0 | L27: 0 | U27: 0 | X27: 0 | Y27: 0 | AC27: Sept-Iles - Québec (653km) | AD27: 653 | AE27: =AD27*$AD$11 -> 359.15
D28: 0 | J28: 0 | L28: 0 | U28: 0 | X28: 0 | Y28: 0 | AC28: Sept-Iles - St-Urbain (555 km) | AD28: 555 | AE28: =AD28*$AD$11 -> 305.25
D29: 0 | J29: 0 | L29: 0 | U29: =(X29+Y29+IF(I29<0,0,J29+H29)) -> 0 | X29: 0 | Y29: 0 | AC29: Sept-Iles- Baie-Comeau (233 km) | AD29: 233 | AE29: =AD29*$AD$11 -> 128.15
A30: TOTAL | D30: =SUM(D14:D29) -> 0 | H30: =SUM(H14:H29) -> 0 | J30: =SUM(J14:J29) -> 0 | L30: =SUM(L14:L29) -> 0 | U30: =(X30+Y30+IF(I30<0,0,J30+H30)) -> 0 | X30: 0 | Y30: 0 | AC30: Sept-Iles- Natasquan (377km) | AD30: =154+223 -> 377 | AE30: =$AD$11*AD30 -> 207.35
N31: Total du frais de la sortie annuelle | AC31: St-Barbe - Corner Brooke (350km) | AD31: =298+52 -> 350 | AE31: 192.5
B32: Date | C32: =TODAY() -> 2022-07-18 | G32: Réservé à l'administration | N32: =SUM(L14:L29) -> 0 | AC32: St-Barbe - DeerLake (298km) | AD32: 298 | AE32: 163.9 | AN32: Allocation lors des déplacemen
AC33: St-Barbe - Port-aux Basques (577km) | AD33: =298+52+75+152 -> 577 | AE33: 317.35 | AN33: Village | AO33: Aéroport | AP33: Bureau de poste | AQ33: Quai | AR33: Village
A34: SIGNATURE DE L'EMPLOYÉ: | G34: CODE:____________________________________________________________________ | AC34: St-Barbe - Stephenville (425km) | AD34: =298+52+75 -> 425 | AE34: 233.75 | AN34: Blanc-Sablon | AO34: 10 | AP34: 8 | AQ34: 8 | AR34: 8
AC35: St-Paul -Blanc-sablon (20km) | AD35: 20 | AE35: 11 | AN35: Chevery | AO35: 8 | AP35: 8 | AQ35: 8 | AR35: 0
G36: CODE:____________________________________________________________________ | AN36: Chevery (succursale) | AO36: 8 | AP36: 8 | AQ36: 8 | AR36: 0
AN37: Harrington | AO37: 0 | AP37: 8 | AQ37: 8 | AR37: 0
AN38: Kégaska | AO38: 8 | AP38: 8 | AQ38: 8 | AR38: 0
AA39: Québec | AE39: Remb frais | AN39: La Romaine | AO39: 8 | AP39: 8 | AQ39: 8 | AR39: 0
AA40: Montréal | AE40: Chevery/ St-Augustin (130,00$) | AF40: 130 | AN40: La Tabatière | AO40: 8 | AP40: 8 | AQ40: 8 | AR40: 0
AA41: Sept-iles | AE41: Chevery/ St-Augustin (150,00$) commercial | AF41: 150 | AN41: Middle bay | AO41: 0 | AP41: 0 | AQ41: 0 | AR41: 0
AA42: Corner Brooke | AE42: Chevery/ Harrington Harbour (16,50$) | AF42: 16.5 | AN42: Mutton Bay | AO42: 8 | AP42: 8 | AQ42: 8 | AR42: 0
AA43: Gatineau | AE43: Chevery/ Harrington Harbour (45,000$)commercial | AF43: 45 | AN43: Old Fort Bay | AO43: 75 | AP43: 8 | AQ43: 8 | AR43: 0
AA44: Malbaie | AE44: Chevery/ Kegaska (142,50$) | AF44: 142.5 | AN44: Port-Menier | AO44: 8 | AP44: 8 | AQ44: 8 | AR44: 8
AA45: Baie-Comeau | AE45: Chevery/ Kegaska (150,00$)commercial | AF45: 150 | AN45: St-Augustin | AO45: 8 | AP45: 8 | AQ45: 8 | AR45: 0
AA46: Natasquan | AE46: Chevery/ La Tabatière (125,00$)commercial | AF46: 125 | AN46: St-Paul | AO46: 51.5 | AP46: 8 | AQ46: 24 | AR46: 0
AA47: Havre-St-Pierre | AE47: Chevery/ La Tabatière (75,50$) | AF47: 75.5 | AN47: Tête-à-la-Baleine | AO47: 8 | AP47: 8 | AQ47: 18 | AR47: 0
AA48: Sherbrooke | AE48: Chevery/ Tête-a-la-Baleine (37,50$) | AF48: 37.5
AA49: Kegaska | AE49: Chevery/ Tête-a-la-Baleine (75,00$)commercial | AF49: 75
AA50: Romaine | AE50: Chevery/La Romaine (125,00$)commercial | AF50: 125
AA51: Chevery | AE51: Chevery/La Romaine (90.00$) | AF51: 90
AA52: Harrington Harbour | AE52: Hébergement (sans reçu 30$) | AF52: 30
AA53: Tête-à-la-Baleine | AE53: Kegaska / La Romaine (53,50$) | AF53: 53.5
AA54: Port Menier | AE54: Kegaska / La Romaine (53,50$)commercial | AF54: 53.5
AA55: Mutton Bay | AE55: Kegaska/Natasquan (45.00$) | AF55: 45
AA56: La Tabatière | AE56: Kegaska/Natasquan (50.00$)commercial | AF56: 50
AA57: St-Augustin | AE57: La Tabatière/ Mutton Bay(12,00$) | AF57: 12
AA58: Old Fort Bay | AE58: La Tabatière/ Mutton Bay(25,00$)commercial | AF58: 25
AA59: Rivière St-Paul | AE59: La Tabatière/ Rivière St-Augustin (125,00$)commercial | AF59: 125
AA60: Lourdes-de-Blanc-Sablon | AE60: La Tabatière/ Rivière St-Augustin (54,50$) | AF60: 54.5
AA61: Blanc-Sablon | AE61: St-Augustin/ Old Fort Bay (125,00$)commercial | AF61: 125
AE62: St-Augustin/ Old Fort Bay (75,50$) | AF62: 75.5
AE63: Tête-a-la-Baleine/ La Tabatière (45,00$) | AF63: 45
AE64: Tête-a-la-Baleine/ La Tabatière (50,00$)commercial | AF64: 50

Sheet FORMULAIRE (2)
A1: NUMÉRO DE MATRICULE: | G1: Sortie annuelle : | H1: Aller/Retour | L1: Numéro de frais de sortie | N1: =TODAY() -> 44760 | S1: Aller | V1: 000-0-00000-000 | AM1: =EXACT(AO1,K14) -> FALSE | AN1: =CODE(AM1) -> 70 | AO1: oui | AP1: =IF(AN1=86,$AD$10*$AE$10,$AD$11*$AE$10) -> 0.55
A2: NOM et Prénom de l'employé | G2: Destination: | H2: Montréal | S2: Aller/Retour | V2: 999-9-99999-999 | AK2: oui | AM2: =EXACT(AO2,K15) -> FALSE | AN2: =CODE(AM2) -> 70 | AO2: oui | AP2: =IF(AN2=86,$AD$10*$AE$10,$AD$11*$AE$10) -> 0.55
J3: am pm | S3: Retour | AM3: =EXACT(AO3,K16) -> FALSE | AN3: =CODE(AM3) -> 70 | AO3: oui | AP3: =IF(AN3=86,$AD$10*$AE$10,$AD$11*$AE$10) -> 0.55
A4: Adresse | F4: DÉPART: | H4: HEURE: | AM4: =EXACT(AO4,K17) -> FALSE | AN4: 70 | AO4: oui | AP4: 0.55
A5: Rue: | L5: réservé à l'administration | AM5: FALSE | AN5: 70 | AO5: oui | AP5: 0.55
A6: Ville: | F6: ARRIVÉE: | H6: HEURE: | L6: Vérifié par: | AM6: FALSE | AN6: 70 | AO6: oui | AP6: 0.55
A7: Province: | L7: Date : | AM7: FALSE | AN7: 70 | AO7: oui | AP7: 0.55
A8: Nom des personnes qui ont voyagé | F8: RETOUR: | H8: HEURE: | AM8: FALSE | AN8: 70 | AO8: oui | AP8: 0.55
AM9: FALSE | AN9: 70 | AO9: oui | AP9: 0.55
F10: ARRIVÉE: | H10: HEURE: | AD10: 0.61 | AE10: 1 | AM10: FALSE | AN10: 70 | AO10: oui | AP10: 0.55
AC11: Kilometre | AD11: 0.55 | AE11: 0.55 | AG11: Frais fondés sur les reçu | AK11: Province | AM11: FALSE | AN11: 70 | AO11: oui | AP11: 0.55
AC12: Blanc-Sablon - Rimouski (1571 km) | AD12: =1883-312 -> 1571 | AE12: =AD12*$AD$11 -> 864.05 | AG12: Autobus | AK12: Alberta | AM12: FALSE | AN12: 70 | AO12: oui | AP12: 0.55
A13: Date | B13: Km parcouru | D13: $ / km | E13: Frais remboursé (montant employé) | G13: Frais fondés sur les reçus | H13: Montant du reçu ($) | I13: Km parcouru | J13: $ / km | K13: Covoiturage | L13: Total de la ligne | N13: Justification | O13: Reçu manquant | U13: Total ligne | X13: remb frais | Y13: Kilometrage | Z13: allocation versés entre village | AC13: Blanc-Sablon -Québec (1883km) | AD13: 1883 | AE13: =AD13*$AD$11 -> 1035.65 | AG13: Autres | AK13: Colombie-Britannique | AM13: FALSE | AN13: 70 | AO13: oui | AP13: 0.55
D14: =Y14 -> 0 | J14: =+IF(AN1=70,($I14*$AD$11),($I14*$AD$10)+((D14/$AD$11)*$AD$10)-D14) -> 0 | L14: =(IF(ISTEXT($H$2),U14," ")) -> 0 | U14: =(X14+Y14+IF(I14<0,0,J14+H14)) -> 0 | X14: =IF(ISNA(VLOOKUP($E14,$AE$40:$AF$64,2,FALSE))=TRUE, ,VLOOKUP($E14,$AE$40:$AF$64,2,FALSE)) -> 0 | Y14: =IF(ISNA(VLOOKUP($B14,$AC$12:$AE$35,3,FALSE))=TRUE, ,VLOOKUP($B14,$AC$12:$AE$35,3,FALSE)) -> 0 | AC14: Blanc-Sablon- St-John(966km) | AD14: 966 | AE14: =AD14*$AD$11 -> 531.3 | AG14: Avion | AK14: Île-du-Prince-Édouard | AM14: FALSE | AN14: 70 | AO14: oui | AP14: 0.55
D15: 0 | J15: =+IF(AN2=70,($I15*$AD$11),($I15*$AD$10)+((D15/$AD$11)*$AD$10)-D15) -> 0 | L15: =(IF(ISTEXT($H$2),U15," ")) -> 0 | U15: =(X15+Y15+IF(I15<0,0,J15+H15)) -> 0 | X15: =IF(ISNA(VLOOKUP($E15,$AE$40:$AF$64,2,FALSE))=TRUE, ,VLOOKUP($E15,$AE$40:$AF$64,2,FALSE)) -> 0 | Y15: 0 | AC15: Kegaska - Natasquan (49 km) | AD15: 49 | AE15: =AD15*$AD$11 -> 26.95 | AG15: Déjeuner (max 10$) | AK15: Manitoba | AM15: FALSE | AN15: 70 | AO15: oui | AP15: 0.55
D16: 0 | J16: 0 | L16: 0 | U16: 0 | X16: 0 | Y16: 0 | AC16: Lourdes-de-Blanc-Sablon - Blanc-Sablon (3,7km) | AD16: 3.7 | AE16: =$AE$11*AD16 -> 2.035 | AG16: Dîner (max 15$) | AK16: Nouveau-Brunswick | AM16: =EXACT(AO16,K29) -> FALSE | AN16: 70 | AO16: oui | AP16: 0.55
D17: 0 | J17: 0 | L17: 0 | U17: 0 | X17: 0 | Y17: 0 | AC17: Montréal - Toronto (556km) | AD17: 556 | AE17: =$AD$11*AD17 -> 305.8 | AG17: Hébergement, fact d'hôtel | AK17: Nunavut | AM17: =EXACT(AO17,K30) -> FALSE | AN17: 70 | AO17: oui | AP17: 0.55
D18: 0 | J18: 0 | L18: =(IF(ISTEXT($H$2),U18," ")) -> 0 | U18: 0 | X18: 0 | Y18: 0 | AC18: Montréal-Ottawa (202km) | AD18: 202 | AE18: =$AD$11*AD18 -> 111.1 | AG18: Repas journée (max 52$) | AK18: Québec
D19: 0 | J19: 0 | L19: 0 | U19: 0 | X19: 0 | Y19: 0 | AC19: Old Fort bay - Rivière St-Paul (12$) | AD19: 0 | AE19: 12 | AG19: Souper (max 27$) | AK19: Saskatchewan
D20: 0 | J20: 0 | L20: 0 | U20: 0 | X20: 0 | Y20: 0 | AC20: Old Fort Bay-Blanc-Sablon (30km) | AD20: 30 | AE20: =AD20*$AE$11 -> 16.5 | AG20: Stationnement, $ du reçu | AK20: Terre-Neuve-et-Labrador
D21: 0 | J21: 0 | L21: 0 | U21: 0 | X21: 0 | Y21: 0 | AC21: Québec- Sherbrooke (254) | AD21: 254 | AE21: =$AD$11*AD21 -> 139.7 | AG21: Taxi, $ du reçu | AK21: Territoire du Nord-Ouest
D22: 0 | J22: 0 | L22: 0 | U22: 0 | X22: 0 | Y22: 0 | AC22: Québec-Montréal (267km) | AD22: 267 | AE22: =$AD$11*AD22 -> 146.85 | AG22: Train, $ du reçu | AK22: Yukon
D23: 0 | J23: 0 | L23: 0 | U23: 0 | X23: 0 | Y23: 0 | AC23: Rivière St-Paul - Blanc Sablon (65,8km) | AD23: =22.2+28+11.9+3.7 -> 65.8 | AE23: =AD23*$AE$11 -> 36.19 | AG23: Transport en commun
D24: 0 | J24: 0 | L24: 0 | U24: 0 | X24: 0 | Y24: 0 | AC24: Sept-Iles - Havre-St-Pierre (223km) | AD24: 223 | AE24: =$AD$11*AD24 -> 122.65 | AG24: Traverse Blanc-Sablon - St-Barbe
D25: 0 | J25: 0 | L25: 0 | U25: 0 | X25: 0 | Y25: 0 | AC25: Sept-Iles - La Malbaie (502 km) | AD25: 502 | AE25: =AD25*$AD$11 -> 276.1 | AG25: Traverse Port-aux-Basques - North Sydney
D26: 0 | J26: 0 | L26: 0 | U26: 0 | X26: 0 | Y26: 0 | AC26: Sept-Iles - Montreal (920) | AD26: 920 | AE26: =AD26*$AD$11 -> 506
D27: 0 | J27: 0 | L27: 0 | U27: 0 | X27: 0 | Y27: 0 | AC27: Sept-Iles - Québec (653km) | AD27: 653 | AE27: =AD27*$AD$11 -> 359.15
D28: 0 | J28: 0 | L28: 0 | U28: 0 | X28: 0 | Y28: 0 | AC28: Sept-Iles - St-Urbain (555 km) | AD28: 555 | AE28: =AD28*$AD$11 -> 305.25
D29: 0 | J29: 0 | L29: 0 | U29: =(X29+Y29+IF(I29<0,0,J29+H29)) -> 0 | X29: 0 | Y29: 0 | AC29: Sept-Iles- Baie-Comeau (233 km) | AD29: 233 | AE29: =AD29*$AD$11 -> 128.15
A30: TOTAL | D30: =SUM(D14:D29) -> 0 | H30: =SUM(H14:H29) -> 0 | J30: =SUM(J14:J29) -> 0 | L30: =SUM(L14:L29) -> 0 | U30: =(X30+Y30+IF(I30<0,0,J30+H30)) -> 0 | X30: 0 | Y30: 0 | AC30: Sept-Iles- Natasquan (377km) | AD30: =154+223 -> 377 | AE30: =$AD$11*AD30 -> 207.35
N31: Total du frais de la sortie annuelle | AC31: St-Barbe - Corner Brooke (350km) | AD31: =298+52 -> 350 | AE31: 192.5
B32: Date | C32: =TODAY() -> 2022-07-18 | G32: Réservé à l'administration | N32: =SUM(L14:L29) -> 0 | AC32: St-Barbe - DeerLake (298km) | AD32: 298 | AE32: 163.9 | AN32: Allocation lors des déplacemen
AC33: St-Barbe - Port-aux Basques (577km) | AD33: =298+52+75+152 -> 577 | AE33: 317.35 | AN33: Village | AO33: Aéroport | AP33: Bureau de poste | AQ33: Quai | AR33: Village
A34: SIGNATURE DE L'EMPLOYÉ: | G34: CODE:____________________________________________________________________ | AC34: St-Barbe - Stephenville (425km) | AD34: =298+52+75 -> 425 | AE34: 233.75 | AN34: Blanc-Sablon | AO34: 10 | AP34: 8 | AQ34: 8 | AR34: 8
AC35: St-Paul -Blanc-sablon (20km) | AD35: 20 | AE35: 11 | AN35: Chevery | AO35: 8 | AP35: 8 | AQ35: 8 | AR35: 0
G36: CODE:____________________________________________________________________ | AN36: Chevery (succursale) | AO36: 8 | AP36: 8 | AQ36: 8 | AR36: 0
AN37: Harrington | AO37: 0 | AP37: 8 | AQ37: 8 | AR37: 0
AN38: Kégaska | AO38: 8 | AP38: 8 | AQ38: 8 | AR38: 0
AA39: Québec | AE39: Remb frais | AN39: La Romaine | AO39: 8 | AP39: 8 | AQ39: 8 | AR39: 0
AA40: Montréal | AE40: Chevery/ St-Augustin (130,00$) | AF40: 130 | AN40: La Tabatière | AO40: 8 | AP40: 8 | AQ40: 8 | AR40: 0
AA41: Sept-iles | AE41: Chevery/ St-Augustin (150,00$) commercial | AF41: 150 | AN41: Middle bay | AO41: 0 | AP41: 0 | AQ41: 0 | AR41: 0
AA42: Corner Brooke | AE42: Chevery/ Harrington Harbour (16,50$) | AF42: 16.5 | AN42: Mutton Bay | AO42: 8 | AP42: 8 | AQ42: 8 | AR42: 0
AA43: Gatineau | AE43: Chevery/ Harrington Harbour (45,000$)commercial | AF43: 45 | AN43: Old Fort Bay | AO43: 75 | AP43: 8 | AQ43: 8 | AR43: 0
AA44: Malbaie | AE44: Chevery/ Kegaska (142,50$) | AF44: 142.5 | AN44: Port-Menier | AO44: 8 | AP44: 8 | AQ44: 8 | AR44: 8
AA45: Baie-Comeau | AE45: Chevery/ Kegaska (150,00$)commercial | AF45: 150 | AN45: St-Augustin | AO45: 8 | AP45: 8 | AQ45: 8 | AR45: 0
AA46: Natasquan | AE46: Chevery/ La Tabatière (125,00$)commercial | AF46: 125 | AN46: St-Paul | AO46: 51.5 | AP46: 8 | AQ46: 24 | AR46: 0
AA47: Havre-St-Pierre | AE47: Chevery/ La Tabatière (75,50$) | AF47: 75.5 | AN47: Tête-à-la-Baleine | AO47: 8 | AP47: 8 | AQ47: 18 | AR47: 0
AA48: Sherbrooke | AE48: Chevery/ Tête-a-la-Baleine (37,50$) | AF48: 37.5
AA49: Kegaska | AE49: Chevery/ Tête-a-la-Baleine (75,00$)commercial | AF49: 75
AA50: Romaine | AE50: Chevery/La Romaine (125,00$)commercial | AF50: 125
AA51: Chevery | AE51: Chevery/La Romaine (90.00$) | AF51: 90
AA52: Harrington Harbour | AE52: Hébergement (sans reçu 30$) | AF52: 30
AA53: Tête-à-la-Baleine | AE53: Kegaska / La Romaine (53,50$) | AF53: 53.5
AA54: Port Menier | AE54: Kegaska / La Romaine (53,50$)commercial | AF54: 53.5
AA55: Mutton Bay | AE55: Kegaska/Natasquan (45.00$) | AF55: 45
AA56: La Tabatière | AE56: Kegaska/Natasquan (50.00$)commercial | AF56: 50
AA57: St-Augustin | AE57: La Tabatière/ Mutton Bay(12,00$) | AF57: 12
AA58: Old Fort Bay | AE58: La Tabatière/ Mutton Bay(25,00$)commercial | AF58: 25
AA59: Rivière St-Paul | AE59: La Tabatière/ Rivière St-Augustin (125,00$)commercial | AF59: 125
AA60: Lourdes-de-Blanc-Sablon | AE60: La Tabatière/ Rivière St-Augustin (54,50$) | AF60: 54.5
AA61: Blanc-Sablon | AE61: St-Augustin/ Old Fort Bay (125,00$)commercial | AF61: 125
AE62: St-Augustin/ Old Fort Bay (75,50$) | AF62: 75.5
AE63: Tête-a-la-Baleine/ La Tabatière (45,00$) | AF63: 45
AE64: Tête-a-la-Baleine/ La Tabatière (50,00$)commercial | AF64: 50

Sheet FORMULAIRE (3)
A1: NUMÉRO DE MATRICULE: | G1: Sortie annuelle : | H1: Aller/Retour | L1: Numéro de frais de sortie | N1: =TODAY() -> 44760 | S1: Aller | V1: 000-0-00000-000 | AM1: =EXACT(AO1,K14) -> FALSE | AN1: =CODE(AM1) -> 70 | AO1: oui | AP1: =IF(AN1=86,$AD$10*$AE$10,$AD$11*$AE$10) -> 0.55
A2: NOM et Prénom de l'employé | G2: Destination: | H2: Montréal | S2: Aller/Retour | V2: 999-9-99999-999 | AK2: oui | AM2: =EXACT(AO2,K15) -> FALSE | AN2: =CODE(AM2) -> 70 | AO2: oui | AP2: =IF(AN2=86,$AD$10*$AE$10,$AD$11*$AE$10) -> 0.55
J3: am pm | S3: Retour | AM3: =EXACT(AO3,K16) -> FALSE | AN3: =CODE(AM3) -> 70 | AO3: oui | AP3: =IF(AN3=86,$AD$10*$AE$10,$AD$11*$AE$10) -> 0.55
A4: Adresse | F4: DÉPART: | H4: HEURE: | AM4: =EXACT(AO4,K17) -> FALSE | AN4: 70 | AO4: oui | AP4: 0.55
A5: Rue: | L5: réservé à l'administration | AM5: FALSE | AN5: 70 | AO5: oui | AP5: 0.55
A6: Ville: | F6: ARRIVÉE: | H6: HEURE: | L6: Vérifié par: | AM6: FALSE | AN6: 70 | AO6: oui | AP6: 0.55
A7: Province: | L7: Date : | AM7: FALSE | AN7: 70 | AO7: oui | AP7: 0.55
A8: Nom des personnes qui ont voyagé | F8: RETOUR: | H8: HEURE: | AM8: FALSE | AN8: 70 | AO8: oui | AP8: 0.55
AM9: FALSE | AN9: 70 | AO9: oui | AP9: 0.55
F10: ARRIVÉE: | H10: HEURE: | AD10: 0.61 | AE10: 1 | AM10: FALSE | AN10: 70 | AO10: oui | AP10: 0.55
AC11: Kilometre | AD11: 0.55 | AE11: 0.55 | AG11: Frais fondés sur les reçu | AK11: Province | AM11: FALSE | AN11: 70 | AO11: oui | AP11: 0.55
AC12: Blanc-Sablon - Rimouski (1571 km) | AD12: =1883-312 -> 1571 | AE12: =AD12*$AD$11 -> 864.05 | AG12: Autobus | AK12: Alberta | AM12: FALSE | AN12: 70 | AO12: oui | AP12: 0.55
A13: Date | B13: Km parcouru | D13: $ / km | E13: Frais remboursé (montant employé) | G13: Frais fondés sur les reçus | H13: Montant du reçu ($) | I13: Km parcouru | J13: $ / km | K13: Covoiturage | L13: Total de la ligne | N13: Justification | O13: Reçu manquant | U13: Total ligne | X13: remb frais | Y13: Kilometrage | Z13: allocation versés entre village | AC13: Blanc-Sablon -Québec (1883km) | AD13: 1883 | AE13: =AD13*$AD$11 -> 1035.65 | AG13: Autres | AK13: Colombie-Britannique | AM13: FALSE | AN13: 70 | AO13: oui | AP13: 0.55
D14: =Y14 -> 0 | J14: =+IF(AN1=70,($I14*$AD$11),($I14*$AD$10)+((D14/$AD$11)*$AD$10)-D14) -> 0 | L14: =(IF(ISTEXT($H$2),U14," ")) -> 0 | U14: =(X14+Y14+IF(I14<0,0,J14+H14)) -> 0 | X14: =IF(ISNA(VLOOKUP($E14,$AE$40:$AF$64,2,FALSE))=TRUE, ,VLOOKUP($E14,$AE$40:$AF$64,2,FALSE)) -> 0 | Y14: =IF(ISNA(VLOOKUP($B14,$AC$12:$AE$35,3,FALSE))=TRUE, ,VLOOKUP($B14,$AC$12:$AE$35,3,FALSE)) -> 0 | AC14: Blanc-Sablon- St-John(966km) | AD14: 966 | AE14: =AD14*$AD$11 -> 531.3 | AG14: Avion | AK14: Île-du-Prince-Édouard | AM14: FALSE | AN14: 70 | AO14: oui | AP14: 0.55
D15: 0 | J15: =+IF(AN2=70,($I15*$AD$11),($I15*$AD$10)+((D15/$AD$11)*$AD$10)-D15) -> 0 | L15: =(IF(ISTEXT($H$2),U15," ")) -> 0 | U15: =(X15+Y15+IF(I15<0,0,J15+H15)) -> 0 | X15: =IF(ISNA(VLOOKUP($E15,$AE$40:$AF$64,2,FALSE))=TRUE, ,VLOOKUP($E15,$AE$40:$AF$64,2,FALSE)) -> 0 | Y15: 0 | AC15: Kegaska - Natasquan (49 km) | AD15: 49 | AE15: =AD15*$AD$11 -> 26.95 | AG15: Déjeuner (max 10$) | AK15: Manitoba | AM15: FALSE | AN15: 70 | AO15: oui | AP15: 0.55
D16: 0 | J16: 0 | L16: 0 | U16: 0 | X16: 0 | Y16: 0 | AC16: Lourdes-de-Blanc-Sablon - Blanc-Sablon (3,7km) | AD16: 3.7 | AE16: =$AE$11*AD16 -> 2.035 | AG16: Dîner (max 15$) | AK16: Nouveau-Brunswick | AM16: =EXACT(AO16,K29) -> FALSE | AN16: 70 | AO16: oui | AP16: 0.55
D17: 0 | J17: 0 | L17: 0 | U17: 0 | X17: 0 | Y17: 0 | AC17: Montréal - Toronto (556km) | AD17: 556 | AE17: =$AD$11*AD17 -> 305.8 | AG17: Hébergement, fact d'hôtel | AK17: Nunavut | AM17: =EXACT(AO17,K30) -> FALSE | AN17: 70 | AO17: oui | AP17: 0.55
D18: 0 | J18: 0 | L18: =(IF(ISTEXT($H$2),U18," ")) -> 0 | U18: 0 | X18: 0 | Y18: 0 | AC18: Montréal-Ottawa (202km) | AD18: 202 | AE18: =$AD$11*AD18 -> 111.1 | AG18: Repas journée (max 52$) | AK18: Québec
D19: 0 | J19: 0 | L19: 0 | U19: 0 | X19: 0 | Y19: 0 | AC19: Old Fort bay - Rivière St-Paul (12$) | AD19: 0 | AE19: 12 | AG19: Souper (max 27$) | AK19: Saskatchewan
D20: 0 | J20: 0 | L20: 0 | U20: 0 | X20: 0 | Y20: 0 | AC20: Old Fort Bay-Blanc-Sablon (30km) | AD20: 30 | AE20: =AD20*$AE$11 -> 16.5 | AG20: Stationnement, $ du reçu | AK20: Terre-Neuve-et-Labrador
D21: 0 | J21: 0 | L21: 0 | U21: 0 | X21: 0 | Y21: 0 | AC21: Québec- Sherbrooke (254) | AD21: 254 | AE21: =$AD$11*AD21 -> 139.7 | AG21: Taxi, $ du reçu | AK21: Territoire du Nord-Ouest
D22: 0 | J22: 0 | L22: 0 | U22: 0 | X22: 0 | Y22: 0 | AC22: Québec-Montréal (267km) | AD22: 267 | AE22: =$AD$11*AD22 -> 146.85 | AG22: Train, $ du reçu | AK22: Yukon
D23: 0 | J23: 0 | L23: 0 | U23: 0 | X23: 0 | Y23: 0 | AC23: Rivière St-Paul - Blanc Sablon (65,8km) | AD23: =22.2+28+11.9+3.7 -> 65.8 | AE23: =AD23*$AE$11 -> 36.19 | AG23: Transport en commun
D24: 0 | J24: 0 | L24: 0 | U24: 0 | X24: 0 | Y24: 0 | AC24: Sept-Iles - Havre-St-Pierre (223km) | AD24: 223 | AE24: =$AD$11*AD24 -> 122.65 | AG24: Traverse Blanc-Sablon - St-Barbe
D25: 0 | J25: 0 | L25: 0 | U25: 0 | X25: 0 | Y25: 0 | AC25: Sept-Iles - La Malbaie (502 km) | AD25: 502 | AE25: =AD25*$AD$11 -> 276.1 | AG25: Traverse Port-aux-Basques - North Sydney
D26: 0 | J26: 0 | L26: 0 | U26: 0 | X26: 0 | Y26: 0 | AC26: Sept-Iles - Montreal (920) | AD26: 920 | AE26: =AD26*$AD$11 -> 506
D27: 0 | J27: 0 | L27: 0 | U27: 0 | X27: 0 | Y27: 0 | AC27: Sept-Iles - Québec (653km) | AD27: 653 | AE27: =AD27*$AD$11 -> 359.15
D28: 0 | J28: 0 | L28: 0 | U28: 0 | X28: 0 | Y28: 0 | AC28: Sept-Iles - St-Urbain (555 km) | AD28: 555 | AE28: =AD28*$AD$11 -> 305.25
D29: 0 | J29: 0 | L29: 0 | U29: =(X29+Y29+IF(I29<0,0,J29+H29)) -> 0 | X29: 0 | Y29: 0 | AC29: Sept-Iles- Baie-Comeau (233 km) | AD29: 233 | AE29: =AD29*$AD$11 -> 128.15
A30: TOTAL | D30: =SUM(D14:D29) -> 0 | H30: =SUM(H14:H29) -> 0 | J30: =SUM(J14:J29) -> 0 | L30: =SUM(L14:L29) -> 0 | U30: =(X30+Y30+IF(I30<0,0,J30+H30)) -> 0 | X30: 0 | Y30: 0 | AC30: Sept-Iles- Natasquan (377km) | AD30: =154+223 -> 377 | AE30: =$AD$11*AD30 -> 207.35
N31: Total du frais de la sortie annuelle | AC31: St-Barbe - Corner Brooke (350km) | AD31: =298+52 -> 350 | AE31: 192.5
B32: Date | C32: =TODAY() -> 2022-07-18 | G32: Réservé à l'administration | N32: =SUM(L14:L29) -> 0 | AC32: St-Barbe - DeerLake (298km) | AD32: 298 | AE32: 163.9 | AN32: Allocation lors des déplacemen
AC33: St-Barbe - Port-aux Basques (577km) | AD33: =298+52+75+152 -> 577 | AE33: 317.35 | AN33: Village | AO33: Aéroport | AP33: Bureau de poste | AQ33: Quai | AR33: Village
A34: SIGNATURE DE L'EMPLOYÉ: | G34: CODE:____________________________________________________________________ | AC34: St-Barbe - Stephenville (425km) | AD34: =298+52+75 -> 425 | AE34: 233.75 | AN34: Blanc-Sablon | AO34: 10 | AP34: 8 | AQ34: 8 | AR34: 8
AC35: St-Paul -Blanc-sablon (20km) | AD35: 20 | AE35: 11 | AN35: Chevery | AO35: 8 | AP35: 8 | AQ35: 8 | AR35: 0
G36: CODE:____________________________________________________________________ | AN36: Chevery (succursale) | AO36: 8 | AP36: 8 | AQ36: 8 | AR36: 0
AN37: Harrington | AO37: 0 | AP37: 8 | AQ37: 8 | AR37: 0
AN38: Kégaska | AO38: 8 | AP38: 8 | AQ38: 8 | AR38: 0
AA39: Québec | AE39: Remb frais | AN39: La Romaine | AO39: 8 | AP39: 8 | AQ39: 8 | AR39: 0
AA40: Montréal | AE40: Chevery/ St-Augustin (130,00$) | AF40: 130 | AN40: La Tabatière | AO40: 8 | AP40: 8 | AQ40: 8 | AR40: 0
AA41: Sept-iles | AE41: Chevery/ St-Augustin (150,00$) commercial | AF41: 150 | AN41: Middle bay | AO41: 0 | AP41: 0 | AQ41: 0 | AR41: 0
AA42: Corner Brooke | AE42: Chevery/ Harrington Harbour (16,50$) | AF42: 16.5 | AN42: Mutton Bay | AO42: 8 | AP42: 8 | AQ42: 8 | AR42: 0
AA43: Gatineau | AE43: Chevery/ Harrington Harbour (45,000$)commercial | AF43: 45 | AN43: Old Fort Bay | AO43: 75 | AP43: 8 | AQ43: 8 | AR43: 0
AA44: Malbaie | AE44: Chevery/ Kegaska (142,50$) | AF44: 142.5 | AN44: Port-Menier | AO44: 8 | AP44: 8 | AQ44: 8 | AR44: 8
AA45: Baie-Comeau | AE45: Chevery/ Kegaska (150,00$)commercial | AF45: 150 | AN45: St-Augustin | AO45: 8 | AP45: 8 | AQ45: 8 | AR45: 0
AA46: Natasquan | AE46: Chevery/ La Tabatière (125,00$)commercial | AF46: 125 | AN46: St-Paul | AO46: 51.5 | AP46: 8 | AQ46: 24 | AR46: 0
AA47: Havre-St-Pierre | AE47: Chevery/ La Tabatière (75,50$) | AF47: 75.5 | AN47: Tête-à-la-Baleine | AO47: 8 | AP47: 8 | AQ47: 18 | AR47: 0
AA48: Sherbrooke | AE48: Chevery/ Tête-a-la-Baleine (37,50$) | AF48: 37.5
AA49: Kegaska | AE49: Chevery/ Tête-a-la-Baleine (75,00$)commercial | AF49: 75
AA50: Romaine | AE50: Chevery/La Romaine (125,00$)commercial | AF50: 125
AA51: Chevery | AE51: Chevery/La Romaine (90.00$) | AF51: 90
AA52: Harrington Harbour | AE52: Hébergement (sans reçu 30$) | AF52: 30
AA53: Tête-à-la-Baleine | AE53: Kegaska / La Romaine (53,50$) | AF53: 53.5
AA54: Port Menier | AE54: Kegaska / La Romaine (53,50$)commercial | AF54: 53.5
AA55: Mutton Bay | AE55: Kegaska/Natasquan (45.00$) | AF55: 45
AA56: La Tabatière | AE56: Kegaska/Natasquan (50.00$)commercial | AF56: 50
AA57: St-Augustin | AE57: La Tabatière/ Mutton Bay(12,00$) | AF57: 12
AA58: Old Fort Bay | AE58: La Tabatière/ Mutton Bay(25,00$)commercial | AF58: 25
AA59: Rivière St-Paul | AE59: La Tabatière/ Rivière St-Augustin (125,00$)commercial | AF59: 125
AA60: Lourdes-de-Blanc-Sablon | AE60: La Tabatière/ Rivière St-Augustin (54,50$) | AF60: 54.5
AA61: Blanc-Sablon | AE61: St-Augustin/ Old Fort Bay (125,00$)commercial | AF61: 125
AE62: St-Augustin/ Old Fort Bay (75,50$) | AF62: 75.5
AE63: Tête-a-la-Baleine/ La Tabatière (45,00$) | AF63: 45
AE64: Tête-a-la-Baleine/ La Tabatière (50,00$)commercial | AF64: 50

Sheet Modèle (hidden)
C2: LOGO CS DU LITTORAL
AE3: Frais | AG3: Nom du supérieur immédiat
C4: Nom du demandeur | H4: FRAIS | Q4: CODE | AE4: Frais de formation | AG4: Deborah Foltin
C5: William Smith-Dufault | H5: Frais de rencontre | AE5: Frais de rencontre | AG5: Eileen Schofield
AG6: Janet Gallupe
C7: Nom du supérieur immédiat | N7: am pm | AG7: Jean Picard
C8: Jean Picard | I8: DATE DE DÉPART: | J8: 2010-06-09 | L8: HEURE: | M8: 10:00:00 | AG8: Jean-Jacques Rhéaume
AG9: Lucy DeMendoça
I10: DATE DE RETOUR: | J10: 2010-06-15 | L10: HEURE: | M10: 09:30:00 | AG10: Marc-André Masse
AG11: Martine Joncas
C12: Date | D12: Nb jour | E12: Frais Km | F12: $ | G12: Frais remboursé (montant employé) | H12: $ | I12: Allocations versées | K12: Nb fois | L12: $ | M12: Frais fondés sur les reçus | N12: Montant du reçu ($) | O12: Nbr Km | P12: $ | Q12: Total de la ligne | R12: Justification | S12: Reçu manquant | X12: Total ligne | AA12: remb frais | AB12: Kilometrage | AC12: allocation versés entre village | AG12: Nadia Landry | AJ12: Frais fondés sur les reçu
C13: 2010-06-10 | D13: 2 | E13: Blanc-Sablon -Sept-Iles (1800km) | F13: =AB13 -> 828 | G13: Chevery/ Tête-a-la-Baleine (37,50) | H13: =AA13 -> 37.5 | I13: Bureau de poste | J13: La Romaine | K13: 4 | L13: =IF($K13>0,$AC13*$K13," ") -> 32 | M13: Taxi, $ du reçu | N13: 25 | O13: 900 | P13: =IF(O13>0,O13*0.46," ") -> 414 | Q13: =IF(D13>0,X13," ") -> 1336.5 | X13: =(AA13+AB13+(AC13*K13))+IF(O13<0,0,(O13*0.46))+N13 -> 1336.5 | AA13: =IF(ISNA(VLOOKUP($G13,$AH$34:$AI$52,2,FALSE))=TRUE, ,VLOOKUP($G13,$AH$34:$AI$52,2,FALSE)) -> 37.5 | AB13: =IF(ISNA(VLOOKUP($E13,$AF$22:$AH$28,3,FALSE))=TRUE, ,VLOOKUP($E13,$AF$22:$AH$28,3,FALSE)) -> 828 | AC13: =IF($K13=0,0, IF($AB76=1,(VLOOKUP($J13,$AH$78:$AI$91,2)),IF($AB76=2,(VLOOKUP($J13,$AH$78:$AJ$91,3)),IF($AB76=3,(VLOOKUP($J13,$AH$78:$AK$91,4)),IF($AB76=4,(VLOOKUP($J13,$AH$78:$AL$91,5)),))))) -> 8 | AG13: Philipp Robertson | AJ13: autobus
C14: 2010-06-14 | D14: 2 | E14: Sept-Iles - Montreal (900) | F14: =AB14 -> 414 | G14: frais de repas 1/2 jour (dejeuner-Diner) (33,00) | H14: =AA14 -> 33 | I14: Village | J14: Kégaska | K14: 4 | L14: =IF($K14>0,$AC14*$K14," ") -> 0 | M14: Stationnement, $ du reçu | N14: 45 | O14: 34 | P14: =IF(O14>0,O14*0.46," ") -> 15.64 | Q14: =IF(D14>0,X14," ") -> 507.64 | X14: =(AA14+AB14+(AC14*K14))+IF(O14<0,0,(O14*0.46))+N14 -> 507.64 | AA14: 33 | AB14: =IF(ISNA(VLOOKUP($E14,$AF$22:$AH$28,3,FALSE))=TRUE, ,VLOOKUP($E14,$AF$22:$AH$28,3,FALSE)) -> 414 | AC14: =IF($K14=0,0, IF($AB77=1,(VLOOKUP($J14,$AH$78:$AI$92,2)),IF($AB77=2,(VLOOKUP($J14,$AH$78:$AJ$92,3)),IF($AB77=3,(VLOOKUP($J14,$AH$78:$AK$92,4)),IF($AB77=4,(VLOOKUP($J14,$AH$78:$AL$92,5)),))))) -> 0 | AG14: Vincent Joncas | AJ14: Autres
C15: 2010-06-14 | D15: 4 | E15: OFB-Blanc-Sablon (30km) | F15: 14.7 | G15: Hébergment (sans reçu) | H15: =AA15 -> 30 | I15: Aéroport | J15: Chevery | K15: 2 | L15: 16 | P15: =IF(O15>0,O15*0.46," ") ->  | Q15: =IF(D15>0,X15," ") -> 60.7 | X15: 60.7 | AA15: 30 | AB15: 14.7 | AC15: =IF($K15=0,0, IF($AB78=1,(VLOOKUP($J15,$AH$78:$AI$92,2)),IF($AB78=2,(VLOOKUP($J15,$AH$78:$AJ$92,3)),IF($AB78=3,(VLOOKUP($J15,$AH$78:$AK$92,4)),IF($AB78=4,(VLOOKUP($J15,$AH$78:$AL$92,5)),))))) -> 8 | AG15: William Macneil | AJ15: Avion
F16: 0 | H16: 0 | P16: =IF(O16>0,O16*0.46," ") ->  | X16: 0 | AA16: 0 | AB16: 0 | AC16: 0 | AG16: Yves Crépeau | AJ16: Hébergement, fact d'hôtel
F17: 0 | H17: 0 | X17: 0 | AA17: 0 | AB17: 0 | AC17: 0 | AJ17: Stationnement, $ du reçu
F18: 0 | H18: 0 | X18: 0 | AA18: 0 | AB18: 0 | AC18: 0 | AJ18: Taxi, $ du reçu
F19: 0 | H19: 0 | X19: 0 | AA19: 0 | AB19: 0 | AC19: 0 | AJ19: Train, $ du reçu
F20: 0 | H20: 0 | X20: 0 | AA20: 0 | AB20: 0 | AC20: 0 | AJ20: Transport en commun
F21: 0 | H21: 0 | X21: 0 | AA21: 0 | AB21: 0 | AC21: 0 | AF21: Kilometre | AG21: 0.46 | AH21: 0.49 | AJ21: Traverse BS-TN
F22: 0 | H22: 0 | X22: 0 | AA22: 0 | AB22: 0 | AC22: 0 | AF22: Blanc-Sablon- NL (500km) | AG22: 500 | AH22: =AG22*$AG$21 -> 230 | AJ22: Traverse St-Barbe
F23: 0 | H23: 0 | X23: 0 | AA23: 0 | AB23: 0 | AC23: 0 | AF23: Blanc-Sablon -Sept-Iles (1800km) | AG23: 1800 | AH23: =AG23*$AG$21 -> 828
F24: 0 | H24: 0 | X24: 0 | AA24: 0 | AB24: 0 | AC24: 0 | AF24: LBS - Blanc-Sablon (10km) | AG24: 10 | AH24: =$AH$21*AG24 -> 4.9
F25: 0 | H25: 0 | X25: 0 | AA25: 0 | AB25: 0 | AC25: 0 | AF25: OFB-Blanc-Sablon (30km) | AG25: 30 | AH25: =AG25*AH21 -> 14.7
F26: 0 | H26: 0 | X26: 0 | AA26: 0 | AB26: 0 | AC26: 0 | AF26: Sept-Iles - Montreal (900) | AG26: 900 | AH26: =AG26*$AG$21 -> 414
F27: 0 | H27: 0 | X27: 0 | AA27: 0 | AB27: 0 | AC27: 0 | AF27: Sept-Iles - Quebec (700km) | AG27: 700 | AH27: =AG27*$AG$21 -> 322
F28: 0 | H28: 0 | X28: 0 | AA28: 0 | AB28: 0 | AC28: 0 | AF28: St-Paul -Blanc-sablon (20km) | AG28: 20 | AH28: =$AH$21*AG28 -> 9.8
F29: 0 | H29: 0 | X29: 0 | AA29: 0 | AB29: 0 | AC29: 0
I30: Date | J30: =TODAY() -> 2022-07-18 | L30: Réservé à l'administration
B31: Signature de l'employé
L32: Saisi par: | R32: Total du frais de déplacement
B33: Signature du superviseur | R33: =SUM(Q13:Q29) -> 1904.84 | AH33: Remb frais
L34: Code: | AH34: Chevery/ Harrington Harbour (16,50) | AI34: 16.5
AH35: Chevery/ Kegaska (142,50) | AI35: 142.5
L36: Date: | AH36: Chevery/ La Tabatière (75,50) | AI36: 75.5
AH37: Chevery/ Rivière St-Augustin (130,00) | AI37: 130
AH38: Chevery/ Tête-a-la-Baleine (37,50) | AI38: 37.5
AH39: Chevery/La Romaine (90.00) | AI39: 90
Q40: =T(C8) -> Jean Picard | AH40: Dejeuner (10,00) | AI40: 10
AH41: Diner (15,00) | AI41: 15
AH42: frais de repas 1/2 jour (dejeuner-Diner) (33,00) | AI42: 33
AH43: Frais de repas 1/2 jour (Diner-Souper 50,00) | AI43: =15+ 27+8 -> 50
AH44: Hébergment (sans reçu) | AI44: 30
AH45: Kegaska / La Romaine (53,50) | AI45: 53.5
AH46: Kegaska/Natasquan (45.00) | AI46: 45
AH47: La Tabatière/ Old Fort Bay (12,00) | AI47: 12
AH48: La Tabatière/ Rivière St-Augustin (54,50) | AI48: 54.5
AH49: Rivière St-Augustin/ Old Fort Bay (75,50) | AI49: 75.5
AH50: Souper (27,00) | AI50: 27
AH51: Tête-a-la-Baleine/ La Tabatière (45,00) | AI51: 45
AC73: Mutton Bay
AB76: =VLOOKUP($I13,$AD$78:$AE$81,2) -> 2 | AH76: Allocation lors des déplacemen
AB77: =VLOOKUP($I14,$AD$78:$AE$81,2) -> 4 | AH77: Village | AI77: Aéroport | AJ77: Bureau de poste | AK77: Quai | AL77: Village
AB78: 1 | AD78: Aéroport | AE78: 1 | AH78: Blanc-Sablon | AI78: 10 | AJ78: 8 | AK78: 8 | AL78: 8
AD79: Bureau de poste | AE79: 2 | AH79: Chevery | AI79: 8 | AJ79: 8 | AK79: 8 | AL79: 0
AD80: Quai | AE80: 3 | AH80: Chevery (succursale) | AI80: 8 | AJ80: 8 | AK80: 8 | AL80: 0
AD81: Village | AE81: 4 | AH81: Harrington | AI81: 0 | AJ81: 8 | AK81: 8 | AL81: 0
AH82: Kégaska | AI82: 8 | AJ82: 8 | AK82: 8 | AL82: 0
AH83: La Romaine | AI83: 8 | AJ83: 8 | AK83: 8 | AL83: 0
AH84: La Tabatière | AI84: 8 | AJ84: 8 | AK84: 8 | AL84: 0
AH85: Middle bay | AI85: 0 | AJ85: 0 | AK85: 0 | AL85: 0
AH86: Mutton Bay | AI86: 8 | AJ86: 8 | AK86: 8 | AL86: 0
AH87: Old Fort Bay | AI87: 75 | AJ87: 8 | AK87: 8 | AL87: 0
AH88: Port-Menier | AI88: 8 | AJ88: 8 | AK88: 8 | AL88: 8
AH89: St-Augustin | AI89: 8 | AJ89: 8 | AK89: 8 | AL89: 0
AH90: St-Paul | AI90: 51.5 | AJ90: 8 | AK90: 24 | AL90: 0
AH91: Tête-à-la-Baleine | AI91: 8 | AJ91: 8 | AK91: 18 | AL91: 0
C184: Frais Quotidiens hors Québec | P184: Frais fondés sur les reçus hors Québec
C186: Allocation forf 12 hres -ADM 67,50$ | D186: 67.5 | P186: Allocation forf modifiée
C187: Allocation forf 12 hres -ADM 135$ | D187: 135 | P187: Allocation quotidienne 60% de l'héberg.+ repas
C188: Repas - Déjeuner 10,40$ | D188: 10.4 | E188: Indemnité -Repas au Québec-Déjeuner (Dir. 61111, art.13a) 10,40$ | P188: Appel téléphonique - Bureau, $ du reçu
C189: Repas - Diner 14.30$ | D189: 14.3 | E189: Indemnité -Repas au Québec-Diner (Dir. 61111, art. 13b) 14.30$ | P189: Appel téléphonique - Personnel, $ du reçu
C190: Repas - Souper 21.55$ | D190: 21.55 | E190: Indemnité -Repas au Québec-Souper (Dir. 61111, art. 13c) 21.55$ | P190: Assignation - Indem, hebdomadaire
P191: Autres
P192: Essence (pr loc d'auto),
P193: Frais d'obtention - Devises
P194: Frais d'obtention - Passeport
P195: Hébergement, fact d'hôtel
P196: Location de voiture
P197: Petites dépenses (10%)
P198: R-Déjeuner au restaurant (20%
P199: R-Diner au restaurant (35%)
P200: R-Repas jour complet
P201: R-Souper au restaurant (45%)
P202: Stationnement, $ du reçu
P203: Taxi, $ du reçu
P204: Train, $ du reçu
P205: Transport en commun
